bitfinex-derivatives/quotes_BTCF0:USTF0_20250602
["timestamp","ask_amount","ask_price","bid_price","bid_amount"]
[1748850951508,1.40344127,105420.0,105410.0,1.40007974]
[1748850951911,1.40336127,105420.0,105410.0,1.39907974]
[1748850952216,1.40336127,105420.0,105410.0,1.5431128]
[1748850953111,1.40336127,105420.0,105410.0,1.39907974]
[1748850953319,1.40336127,105420.0,105410.0,1.5431128]
[1748850956117,1.40336127,105420.0,105410.0,1.1823128]
[1748850956323,1.40336127,105420.0,105410.0,1.5431128]
[1748850957321,1.40336127,105420.0,105410.0,1.1823128]
[1748850958410,1.40336127,105420.0,105410.0,1.03827974]
[1748850958611,1.54739433,105420.0,105410.0,0.56215974]
[1748850959215,1.40336127,105420.0,105410.0,0.56215974]
[1748850960420,1.21372557,105420.0,105410.0,1.0875928]
[1748850960621,1.40336137,105420.0,105410.0,1.0875928]
[1748850961222,1.54741491,105420.0,105410.0,1.08761328]
[1748850962523,0.54741491,105420.0,105410.0,1.08761328]
[1748850962719,0.6264758,105420.0,105410.0,1.63651328]
[1748850964621,0.77052934,105420.0,105410.0,1.63651328]
[1748850965518,0.77052934,105420.0,105410.0,1.49245974]
[1748850965817,0.77052934,105420.0,105410.0,1.27571328]
[1748850965818,1.13972934,105420.0,105410.0,1.27571328]
[1748850966120,1.18764983,105420.0,105410.0,1.27571328]
[1748850966725,1.38574983,105420.0,105410.0,1.27571328]
[1748850968320,0.80485629,105420.0,105410.0,1.63651328]
[1748850968526,1.38570983,105420.0,105410.0,1.63651328]
[1748850971618,1.5339515,105420.0,105410.0,1.63651328]
[1748850973729,1.38989796,105420.0,105410.0,1.63651328]
[1748850977127,1.38570983,105420.0,105410.0,1.63651328]
[1748850977823,1.38570983,105420.0,105410.0,1.27571328]
[1748850978025,1.38570983,105420.0,105410.0,1.63651328]
[1748850978626,1.38570983,105420.0,105410.0,1.27571328]
[1748850978931,1.5339515,105420.0,105410.0,1.27571328]
[1748850985136,1.5339515,105420.0,105410.0,1.27580346]
[1748850986232,1.5339515,105420.0,105410.0,1.13174992]
[1748850986437,1.5339515,105420.0,105410.0,1.27580346]
[1748850990243,1.5339515,105420.0,105410.0,1.13174992]
[1748850990545,1.5339515,105420.0,105410.0,1.27580346]
[1748850992133,1.5339515,105420.0,105410.0,1.08614966]
[1748850992441,1.5339515,105420.0,105410.0,1.27580336]
[1748850995234,1.5339515,105420.0,105410.0,1.08614966]
[1748850995845,1.3357315,105420.0,105410.0,1.27580336]
[1748850996044,1.19167796,105420.0,105410.0,1.27580336]
[1748850996245,1.3357315,105420.0,105410.0,1.27580336]
[1748850997545,1.3357315,105420.0,105410.0,1.01031742]
[1748850997741,1.3357315,105420.0,105410.0,1.27580336]
[1748850998245,1.04343629,105420.0,105410.0,1.27580336]
[1748850999043,1.25084633,105420.0,105410.0,1.27580336]
[1748851000547,1.06284633,105420.0,105410.0,1.27580336]
[1748851002544,0.43653053,105420.0,105410.0,1.27580336]
[1748851002846,0.69201053,105420.0,105410.0,1.27580336]
[1748851003044,0.48460049,105420.0,105410.0,1.27580336]
[1748851003550,0.48480049,105420.0,105410.0,1.27580336]
[1748851003949,0.48480049,105420.0,105410.0,1.27680336]
[1748851004143,0.48480049,105420.0,105410.0,1.27780336]
[1748851006449,0.67443609,105420.0,105410.0,1.27780336]
[1748851006952,0.86233609,105420.0,105410.0,1.27780336]
[1748851008052,0.67270049,105420.0,105410.0,1.27780336]
[1748851009652,0.86233589,105420.0,105410.0,1.27780336]
[1748851010751,0.23602049,105420.0,105410.0,1.27780336]
[1748851010952,0.67266049,105420.0,105410.0,1.27780336]
[1748851011653,0.86229589,105420.0,105410.0,1.27780336]
[1748851012454,1.15461751,105420.0,105410.0,1.27780336]
[1748851012857,1.00634943,105420.0,105410.0,1.27780336]
[1748851013066,1.15461751,105420.0,105410.0,1.27780336]
[1748851013649,1.00634943,105420.0,105410.0,1.27780336]
[1748851014156,1.00634943,105420.0,105410.0,1.13374982]
[1748851014357,1.15461631,105420.0,105410.0,1.63860336]
[1748851014952,1.15461631,105420.0,105410.0,1.08814966]
[1748851015154,1.18904943,105420.0,105410.0,1.27780306]
[1748851015459,1.18904943,105420.0,105410.0,1.08814966]
[1748851015844,1.18904943,105420.0,105410.0,0.67849018]
[1748851015845,1.48137164,105420.0,105410.0,0.67849018]
[1748851016053,1.5330181,105420.0,105410.0,0.82254372]
[1748851016254,1.5330181,105420.0,105410.0,1.01119712]
[1748851017059,1.5330181,105420.0,105410.0,1.01019712]
[1748851017461,1.5330181,105420.0,105410.0,0.82054372]
[1748851017857,1.5330181,105420.0,105410.0,1.08602966]
[1748851019363,1.67707164,105420.0,105410.0,0.63244372]
[1748851021156,1.67699164,105420.0,105410.0,0.63244372]
[1748851022461,1.67699164,105420.0,105410.0,0.82954372]
[1748851024653,1.24043164,105420.0,105410.0,0.82954372]
[1748851024857,1.67699164,105420.0,105410.0,0.82954372]
[1748851025059,1.5329381,105420.0,105410.0,0.82954372]
[1748851025758,1.38466943,105420.0,105410.0,0.82954372]
[1748851025961,1.59207947,105420.0,105410.0,0.68549018]
[1748851026268,1.59207947,105420.0,105410.0,0.82954372]
[1748851026861,1.59207947,105420.0,105410.0,1.09502966]
[1748851027765,1.44802593,105420.0,105410.0,1.09502966]
[1748851027966,1.59207947,105420.0,105410.0,1.09502966]
[1748851031172,1.59207947,105420.0,105410.0,1.28468036]
[1748851031374,1.59207947,105420.0,105410.0,1.09502966]
[1748851031766,1.15551947,105420.0,105410.0,1.09502966]
[1748851032065,1.59203947,105420.0,105410.0,1.09502966]
[1748851034481,1.59203947,105420.0,105410.0,1.28468036]
[1748851035164,1.01146593,105420.0,105410.0,1.28468036]
[1748851035369,1.59203947,105420.0,105410.0,1.28468036]
[1748851035784,1.39633947,105420.0,105410.0,1.28468036]
[1748851035982,0.62613053,105420.0,105410.0,1.28468036]
[1748851036279,0.82078188,105420.0,105410.0,1.64548036]
[1748851036677,0.82058188,105420.0,105410.0,1.64548036]
[1748851036880,0.82078188,105420.0,105410.0,1.64548036]
[1748851037277,1.01041448,105420.0,105410.0,1.64548036]
[1748851037776,1.01041448,105420.0,105410.0,1.66675229]
[1748851038576,1.01041448,105420.0,105410.0,1.30595229]
[1748851038785,1.01041448,105420.0,105410.0,1.64748036]
[1748851039171,1.15446802,105420.0,105410.0,1.64748036]
[1748851044278,1.15446802,105420.0,105410.0,1.45782966]
[1748851044473,1.15446802,105420.0,105410.0,1.64748036]
[1748851044682,1.33856802,105420.0,105410.0,1.64748036]
[1748851045387,1.33856802,105420.0,105410.0,1.35566966]
[1748851045682,1.53776802,105420.0,105410.0,1.64740036]
[1748851049582,1.53776802,105420.0,105410.0,1.31369612]
[1748851049781,1.59693667,105420.0,105410.0,1.09694966]
[1748851050477,1.59693667,105420.0,105410.0,1.28660036]
[1748851050880,1.59693667,105420.0,105410.0,1.28560036]
[1748851051785,1.59693667,105420.0,105410.0,1.28460036]
[1748851053287,1.59693667,105420.0,105410.0,1.09494966]
[1748851053480,1.59693667,105420.0,105410.0,1.28460036]
[1748851054679,1.38952663,105420.0,105410.0,1.28460036]
[1748851054882,1.38952663,105420.0,105410.0,1.14054682]
[1748851055189,1.38952663,105420.0,105410.0,1.28460036]
[1748851055980,1.38952663,105420.0,105410.0,1.64540036]
[1748851057679,1.38952663,105420.0,105410.0,1.37991442]
[1748851057990,1.19032663,105420.0,105410.0,1.64540036]
[1748851059590,1.19032663,105420.0,105410.0,1.64531018]
[1748851060788,0.75380663,105420.0,105410.0,1.64531018]
[1748851060992,1.1943994,105420.0,105410.0,1.64531018]
[1748851061891,1.1943994,105420.0,105410.0,1.64540036]
[1748851062092,1.04615309,105420.0,105410.0,1.64540036]
[1748851065598,1.25356313,105420.0,105410.0,1.64540036]
[1748851066391,1.25356313,105420.0,105410.0,1.28460036]
[1748851066890,1.25356313,105420.0,105410.0,1.64540036]
[1748851067682,0.00014229,105430.0,105410.0,1.9606032]
[1748851067890,0.14840737,105430.0,105420.0,1.67222582]
[1748851068097,0.43650229,105430.0,105420.0,1.67222582]
[1748851068385,0.43670229,105430.0,105420.0,3.17222582]
[1748851068595,0.43670229,105430.0,105420.0,1.67222582]
[1748851068986,0.43670229,105430.0,105420.0,1.67522582]
[1748851069294,0.43670229,105430.0,105420.0,3.17522582]
[1748851069686,0.43670229,105430.0,105420.0,3.17822582]
[1748851070696,0.43670229,105430.0,105420.0,3.18296582]
[1748851071991,0.00034229,105430.0,105420.0,3.18296582]
[1748851072296,0.43666229,105430.0,105420.0,3.18296582]
[1748851072494,0.48301784,105430.0,105420.0,3.18296582]
[1748851073084,0.00034229,105430.0,105420.0,3.18296582]
[1748851073294,0.1482455,105440.0,105430.0,0.1896147]
[1748851073492,0.5845655,105440.0,105430.0,1.63035418]
[1748851073798,0.43652,105440.0,105430.0,1.63035418]
[1748851074293,0.6261167,105440.0,105430.0,1.63035418]
[1748851074600,0.6261167,105440.0,105430.0,1.63135418]
[1748851075094,0.6260767,105440.0,105430.0,1.63135418]
[1748851075489,0.6260767,105440.0,105430.0,1.63235418]
[1748851075690,0.43648,105440.0,105430.0,1.63235418]
[1748851077292,0.43648,105440.0,105430.0,1.68078769]
[1748851079303,0.0002,105440.0,105430.0,1.82484123]
[1748851079502,0.43644,105440.0,105430.0,1.82484123]
[1748851079701,0.43624,105440.0,105430.0,1.68078769]
[1748851080004,0.43644,105440.0,105430.0,1.68078769]
[1748851082207,0.62514,105440.0,105430.0,1.68078769]
[1748851082904,0.8147367,105440.0,105430.0,1.68078769]
[1748851083602,0.62514,105440.0,105430.0,1.68552769]
[1748851084106,0.62514,105440.0,105430.0,1.63709418]
[1748851084603,0.62506,105440.0,105430.0,1.63709418]
[1748851084994,0.62506,105440.0,105430.0,1.63705418]
[1748851091395,0.1889,105440.0,105430.0,1.99785418]
[1748851091604,0.62502,105440.0,105430.0,1.99785418]
[1748851099213,0.1889,105440.0,105430.0,1.99785418]
[1748851101216,0.3726,105440.0,105430.0,1.99785418]
[1748851102916,0.1889,105440.0,105430.0,1.99785418]
[1748851104112,0.1889,105440.0,105430.0,1.73236824]
[1748851104307,0.1889,105440.0,105430.0,1.99785418]
[1748851104504,0.1887,105440.0,105430.0,1.99785418]
[1748851105313,0.1889,105440.0,105430.0,1.99785418]
[1748851107519,0.5189455,105440.0,105430.0,1.99785418]
[1748851107720,0.3707,105440.0,105430.0,1.99785418]
[1748851108324,0.5189455,105440.0,105430.0,1.99785418]
[1748851110319,0.3371455,105440.0,105430.0,1.99785418]
[1748851110922,0.1889,105440.0,105430.0,1.99785418]
[1748851112925,0.1889,105440.0,105430.0,2.00210372]
[1748851114132,0.1889,105440.0,105430.0,1.99785418]
[1748851114625,0.1889,105440.0,105430.0,2.04811518]
[1748851114831,0.3852,105440.0,105430.0,2.04811518]
[1748851117231,0.3852,105440.0,105430.0,2.048119]
[1748851117430,0.3852,105440.0,105430.0,1.326519]
[1748851117634,0.3852,105440.0,105430.0,1.687319]
[1748851118231,0.3852,105440.0,105430.0,1.63705418]
[1748851118433,0.3852,105440.0,105430.0,1.68731656]
[1748851119628,0.1889,105440.0,105430.0,1.68731656]
[1748851119828,0.62482,105440.0,105430.0,1.68731656]
[1748851120829,0.1889,105440.0,105430.0,1.68731656]
[1748851121034,0.1887,105440.0,105430.0,1.6915661]
[1748851121235,0.77900779,105450.0,105440.0,0.1895967]
[1748851121435,0.78250779,105450.0,105440.0,1.51983618]
[1748851121830,0.19834229,105450.0,105440.0,1.66388972]
[1748851122035,0.15058779,105450.0,105440.0,1.80794326]
[1748851122335,0.00214229,105450.0,105440.0,3.16388972]
[1748851122523,0.00234229,105450.0,105440.0,3.16388972]
[1748851123138,0.00214229,105450.0,105440.0,3.79408705]
[1748851123336,0.00234229,105450.0,105440.0,3.79408705]
[1748851123539,0.00214229,105450.0,105440.0,3.79408705]
[1748851123730,0.1962,105460.0,105450.0,0.1895788]
[1748851123933,0.1962,105460.0,105450.0,1.63389828]
[1748851124238,0.1962,105460.0,105450.0,1.63863828]
[1748851124730,0.1962,105460.0,105450.0,1.99943828]
[1748851124935,0.1962,105460.0,105450.0,2.00243828]
[1748851126141,0.1962,105460.0,105450.0,2.00543828]
[1748851127838,0.1962,105460.0,105450.0,3.50543828]
[1748851130242,0.1962,105460.0,105450.0,3.51511217]
[1748851131945,0.1962,105460.0,105450.0,2.79351217]
[1748851132248,0.1962,105460.0,105450.0,3.15431217]
[1748851133331,0.37939509,105470.0,105460.0,0.1895603]
[1748851133641,0.81900229,105470.0,105460.0,1.53399978]
[1748851134544,0.81900229,105470.0,105460.0,1.53499978]
[1748851135138,0.81900229,105470.0,105460.0,1.53599978]
[1748851137038,0.81900229,105470.0,105460.0,1.17519978]
[1748851137246,0.81900229,105470.0,105460.0,1.53599978]
[1748851138245,0.81900229,105470.0,105460.0,1.39194624]
[1748851138446,0.81900229,105470.0,105460.0,1.53599978]
[1748851140444,1.00920229,105470.0,105460.0,1.53599978]
[1748851140655,1.00920229,105470.0,105460.0,1.39194624]
[1748851140845,1.00920229,105470.0,105460.0,1.53599978]
[1748851142040,1.19874499,105470.0,105460.0,1.53599978]
[1748851144846,1.34279853,105470.0,105460.0,0.85146]
[1748851145152,1.49104403,105470.0,105460.0,0.43737394]
[1748851146055,1.49104403,105470.0,105460.0,0.62277394]
[1748851146359,1.49104403,105470.0,105460.0,0.62177394]
[1748851148360,1.34279853,105470.0,105460.0,0.62177394]
[1748851149165,1.34279853,105470.0,105460.0,0.81097394]
[1748851151268,1.49104403,105470.0,105460.0,0.81097394]
[1748851151968,1.49092403,105470.0,105460.0,0.81097394]
[1748851152172,1.34687049,105470.0,105460.0,0.81097394]
[1748851155771,1.34687049,105470.0,105460.0,1.01531394]
[1748851156668,1.34687049,105470.0,105460.0,1.01956348]
[1748851157871,1.34687049,105470.0,105460.0,1.01531394]
[1748851160875,1.49092403,105470.0,105460.0,1.01531394]
[1748851161674,1.34687049,105470.0,105460.0,1.01531394]
[1748851164476,1.34687049,105470.0,105460.0,0.72399354]
[1748851164680,1.34687049,105470.0,105460.0,1.01523424]
[1748851165879,1.34267853,105470.0,105460.0,1.01523424]
[1748851167273,1.19862499,105470.0,105460.0,1.01523424]
[1748851170385,1.19862499,105470.0,105460.0,1.01523414]
[1748851170884,1.19862499,105470.0,105460.0,0.82567354]
[1748851171085,1.19862499,105470.0,105460.0,1.01523414]
[1748851172481,1.34687049,105470.0,105460.0,1.01523414]
[1748851172883,1.34687049,105470.0,105460.0,1.28072008]
[1748851174382,1.49092403,105470.0,105460.0,0.62607354]
[1748851175086,1.49092403,105470.0,105460.0,0.81563414]
[1748851175785,1.49092403,105470.0,105460.0,0.99593414]
[1748851175986,1.34687049,105470.0,105460.0,0.99593414]
[1748851178974,1.34687049,105470.0,105460.0,1.00018368]
[1748851183293,0.14838779,105470.0,105460.0,1.77052316]
[1748851183586,0.25755376,105480.0,105470.0,0.1895426]
[1748851183787,0.05055755,105480.0,105470.0,1.47583562]
[1748851183991,0.05055755,105480.0,105470.0,3.16723562]
[1748851184194,0.05075755,105480.0,105470.0,3.16723562]
[1748851184590,0.05075755,105480.0,105470.0,3.16823562]
[1748851184796,0.05075755,105480.0,105470.0,3.17123562]
[1748851185496,0.05075755,105480.0,105470.0,3.17323562]
[1748851187098,0.05055755,105480.0,105470.0,3.17323562]
[1748851187300,0.05075755,105480.0,105470.0,3.17323562]
[1748851188001,0.05075755,105480.0,105470.0,3.17797562]
[1748851192398,0.05075755,105480.0,105470.0,3.53877562]
[1748851194607,0.00014229,105490.0,105480.0,0.1895244]
[1748851194797,0.00014229,105490.0,105480.0,1.57071742]
[1748851195701,0.00014229,105490.0,105480.0,1.57171742]
[1748851197006,0.00014229,105490.0,105480.0,1.57271742]
[1748851199111,0.04785825,105490.0,105480.0,1.57271742]
[1748851200212,0.04785825,105490.0,105480.0,1.28461034]
[1748851200533,0.23515825,105490.0,105480.0,1.28461034]
[1748851200811,0.42466485,105490.0,105480.0,1.18301034]
[1748851200999,0.42466485,105490.0,105480.0,1.28457034]
[1748851201200,0.42466485,105490.0,105480.0,0.82956]
[1748851201507,0.80446485,105490.0,105480.0,0.8341846]
[1748851202007,0.80446485,105490.0,105480.0,0.64466]
[1748851202599,0.56684889,105490.0,105480.0,0.64466]
[1748851202803,0.56684889,105490.0,105480.0,0.82626]
[1748851203002,0.56684889,105490.0,105480.0,1.0157846]
[1748851203303,0.56684889,105490.0,105480.0,1.0147846]
[1748851203511,0.56684889,105490.0,105480.0,1.2125846]
[1748851203701,0.56684889,105490.0,105480.0,1.2173246]
[1748851205010,1.00216889,105490.0,105480.0,1.0278]
[1748851205210,1.00216889,105490.0,105480.0,1.0357246]
[1748851206709,1.00216889,105490.0,105480.0,1.2240246]
[1748851209113,1.00216889,105490.0,105480.0,1.36791304]
[1748851211215,0.56684889,105490.0,105480.0,1.36791304]
[1748851211404,1.00212889,105490.0,105480.0,1.36791304]
[1748851212216,1.00212889,105490.0,105480.0,1.26635304]
[1748851212513,1.00212889,105490.0,105480.0,0.2958246]
[1748851212703,1.00212889,105490.0,105480.0,0.81541304]
[1748851213109,1.00212889,105490.0,105480.0,0.62588844]
[1748851213311,1.00212889,105490.0,105480.0,0.25018844]
[1748851214018,1.00212889,105490.0,105480.0,0.14862844]
[1748851214218,1.00212889,105490.0,105480.0,0.25018844]
[1748851214518,1.00212889,105490.0,105480.0,0.43971294]
[1748851215018,1.19442889,105490.0,105480.0,0.43971294]
[1748851215819,0.75914889,105490.0,105480.0,0.43971294]
[1748851216015,1.19438889,105490.0,105480.0,0.62941294]
[1748851217218,1.19438889,105490.0,105480.0,0.62937294]
[1748851221723,1.19438889,105490.0,105480.0,0.80947294]
[1748851223218,0.75914889,105490.0,105480.0,0.80947294]
[1748851223417,1.19438889,105490.0,105480.0,1.17027294]
[1748851223618,1.19458889,105490.0,105480.0,1.36287294]
[1748851224615,1.00508229,105490.0,105480.0,1.36287294]
[1748851224924,0.37754229,105490.0,105480.0,1.77224732]
[1748851225127,0.62268229,105490.0,105480.0,1.77224732]
[1748851225330,0.62288229,105490.0,105480.0,1.77224732]
[1748851225524,0.62268229,105490.0,105480.0,1.77224732]
[1748851225720,0.62288229,105490.0,105480.0,1.77224732]
[1748851226119,0.62288229,105490.0,105480.0,1.77324732]
[1748851227227,0.62288229,105490.0,105480.0,1.77319082]
[1748851227731,0.62288229,105490.0,105480.0,1.77419082]
[1748851228823,0.81238889,105490.0,105480.0,1.77419082]
[1748851229826,0.37714889,105490.0,105480.0,1.77419082]
[1748851230017,0.81234889,105490.0,105480.0,1.77419082]
[1748851230222,0.62284229,105490.0,105480.0,1.77419082]
[1748851231128,0.81234889,105490.0,105480.0,1.77419082]
[1748851233232,0.85981695,105490.0,105480.0,1.77419082]
[1748851234031,0.67031035,105490.0,105480.0,1.77419082]
[1748851236335,0.67031035,105490.0,105480.0,0.7586645]
[1748851236536,0.67031035,105490.0,105480.0,1.26953063]
[1748851236929,0.67031035,105490.0,105480.0,1.41339082]
[1748851237423,0.23511035,105490.0,105480.0,1.77419082]
[1748851237633,0.67027035,105490.0,105480.0,1.77419082]
[1748851241954,0.23511035,105490.0,105480.0,1.77419082]
[1748851242239,0.67003035,105490.0,105480.0,1.77419082]
[1748851242432,0.67023035,105490.0,105480.0,1.77419082]
[1748851244143,0.23511035,105490.0,105480.0,1.77419082]
[1748851244339,0.67023035,105490.0,105480.0,1.77419082]
[1748851248147,0.00034229,105490.0,105480.0,1.91805101]
[1748851248644,0.00014229,105490.0,105480.0,1.91805101]
[1748851248847,0.00034229,105490.0,105480.0,1.91805101]
[1748851249551,0.00034229,105490.0,105480.0,1.77419082]
[1748851249845,0.08964229,105490.0,105480.0,1.77419082]
[1748851252148,0.08964229,105490.0,105480.0,1.91805101]
[1748851252556,0.20674723,105500.0,105490.0,0.1895066]
[1748851252740,0.52898,105510.0,105500.0,0.1894886]
[1748851252941,0.002,105510.0,105500.0,1.61519511]
[1748851253446,0.0022,105510.0,105500.0,1.61519511]
[1748851253750,0.0022,105510.0,105500.0,1.62468912]
[1748851254245,0.004,105510.0,105500.0,1.62468912]
[1748851254444,0.0042,105510.0,105500.0,1.62468912]
[1748851255150,0.0042,105510.0,105500.0,1.09639855]
[1748851255342,0.0997,105510.0,105500.0,1.19779855]
[1748851255648,0.0997,105510.0,105500.0,1.34159624]
[1748851255946,0.79376829,105510.0,105500.0,0.10613]
[1748851256248,0.7396706,105510.0,105500.0,0.2956186]
[1748851257244,0.7396706,105510.0,105500.0,0.53051629]
[1748851258945,0.7396706,105510.0,105500.0,0.10613]
[1748851259553,0.88346829,105510.0,105500.0,0.10613]
[1748851259754,0.7396706,105510.0,105500.0,0.10613]
[1748851259954,0.7396706,105510.0,105500.0,0.2956187]
[1748851260946,0.7396706,105510.0,105500.0,0.10613]
[1748851261142,0.1894886,105500.0,105490.0,0.08904229]
[1748851261346,1.22237069,105500.0,105460.0,1.7228889]
[1748851261542,1.22237069,105500.0,105470.0,0.2868]
[1748851261543,0.2842926,105480.0,105470.0,0.2868]
[1748851261848,1.127477,105480.0,105470.0,0.4763425]
[1748851262150,1.2681085,105480.0,105470.0,0.62014019]
[1748851262655,0.6124,105480.0,105470.0,0.62014019]
[1748851263152,0.6126,105480.0,105470.0,0.62014019]
[1748851263555,0.6126,105480.0,105470.0,0.62314019]
[1748851263850,0.0899,105480.0,105470.0,1.08308019]
[1748851264157,0.52498,105480.0,105470.0,1.35156613]
[1748851264554,0.43534229,105490.0,105480.0,0.1895246]
[1748851264750,0.52634229,105490.0,105480.0,1.29010592]
[1748851265156,0.52654229,105490.0,105480.0,1.29010592]
[1748851265355,0.52634229,105490.0,105480.0,1.29010592]
[1748851265551,0.52634229,105490.0,105480.0,1.29942312]
[1748851265749,0.52654229,105490.0,105480.0,1.29942312]
[1748851265948,0.00034229,105490.0,105480.0,1.29942312]
[1748851266657,0.00014229,105490.0,105480.0,1.29942312]
[1748851266855,0.00034229,105490.0,105480.0,1.29942312]
[1748851267356,0.00034229,105490.0,105480.0,1.30042312]
[1748851267553,0.00034229,105490.0,105480.0,1.30142312]
[1748851270054,0.00034229,105490.0,105480.0,1.01382774]
[1748851270356,0.00034229,105490.0,105480.0,1.30142312]
[1748851270559,0.00034229,105490.0,105480.0,1.40282312]
[1748851270855,0.00034229,105490.0,105480.0,1.25902543]
[1748851271053,0.09054229,105490.0,105480.0,1.40282312]
[1748851271972,0.09054229,105490.0,105480.0,1.15762543]
[1748851272261,0.09054229,105490.0,105480.0,0.98422229]
[1748851272557,0.09054229,105490.0,105480.0,1.15870823]
[1748851273361,0.52614229,105490.0,105480.0,1.15870823]
[1748851273959,0.52614229,105490.0,105480.0,1.15770823]
[1748851275950,0.52614229,105490.0,105480.0,1.15670823]
[1748851277756,0.52614229,105490.0,105480.0,1.21660823]
[1748851278358,0.52614229,105490.0,105480.0,1.11520823]
[1748851278555,0.52614229,105490.0,105480.0,1.21708823]
[1748851279662,0.52614229,105490.0,105480.0,1.07329054]
[1748851279862,0.52614229,105490.0,105480.0,1.21708823]
[1748851280759,0.52614229,105490.0,105480.0,1.11520823]
[1748851280965,0.52614229,105490.0,105480.0,1.21708823]
[1748851281364,0.71564859,105490.0,105480.0,1.15718823]
[1748851281565,0.52614229,105490.0,105480.0,1.05530823]
[1748851281859,0.52614229,105490.0,105480.0,0.89170229]
[1748851281860,0.71564859,105490.0,105480.0,0.89170229]
[1748851282565,0.52614229,105490.0,105480.0,0.89170229]
[1748851283066,0.71564869,105490.0,105480.0,0.78982229]
[1748851283257,0.71564869,105490.0,105480.0,0.3871046]
[1748851283458,0.71744869,105490.0,105480.0,0.3871046]
[1748851284159,0.86519936,105490.0,105480.0,0.53090229]
[1748851284664,0.86719936,105490.0,105480.0,0.3871046]
[1748851284865,0.67769296,105490.0,105480.0,0.53090229]
[1748851285064,0.24029296,105490.0,105480.0,0.94018592]
[1748851285258,0.67653296,105490.0,105480.0,1.00178592]
[1748851285460,0.52978229,105490.0,105480.0,1.00178592]
[1748851286062,0.52958229,105490.0,105480.0,0.89990592]
[1748851286265,0.52678229,105490.0,105480.0,0.85798823]
[1748851290168,0.52678229,105490.0,105480.0,0.71419054]
[1748851290376,0.52678229,105490.0,105480.0,0.85798823]
[1748851290770,0.52678229,105490.0,105480.0,0.69450823]
[1748851291168,0.86008618,105490.0,105480.0,0.19758]
[1748851291368,0.95668618,105490.0,105480.0,0.19758]
[1748851291568,1.11427821,105490.0,105480.0,0.19758]
[1748851291767,1.47507821,105490.0,105480.0,0.10188]
[1748851291971,1.53412386,105490.0,105480.0,0.10188]
[1748851292369,1.53612386,105490.0,105480.0,0.10188]
[1748851292881,1.53712386,105490.0,105480.0,0.10188]
[1748851293069,1.53812386,105490.0,105480.0,0.10188]
[1748851293381,1.53812386,105490.0,105480.0,0.10662]
[1748851293569,1.82939411,105490.0,105480.0,0.16612]
[1748851293872,1.68759642,105490.0,105480.0,0.16612]
[1748851294670,1.59279642,105490.0,105480.0,0.16612]
[1748851294973,1.60224001,105490.0,105480.0,0.16612]
[1748851295766,1.60224001,105490.0,105480.0,0.3556442]
[1748851296374,1.59279642,105490.0,105480.0,0.3556442]
[1748851298282,1.59279642,105490.0,105480.0,0.3556842]
[1748851298883,1.59279642,105490.0,105480.0,0.16616]
[1748851299274,1.59279642,105490.0,105480.0,0.3556842]
[1748851299474,1.60215732,105490.0,105480.0,0.3556842]
[1748851301484,1.24135732,105490.0,105480.0,0.3556842]
[1748851301676,1.60215732,105490.0,105480.0,0.3556842]
[1748851302180,1.45244939,105490.0,105480.0,0.3556842]
[1748851302382,1.45244939,105490.0,105480.0,0.2537643]
[1748851302583,1.45244939,105490.0,105480.0,0.06424]
[1748851304489,1.45244939,105490.0,105480.0,0.2537643]
[1748851304688,1.45244939,105490.0,105480.0,0.06424]
[1748851305283,1.65936858,105490.0,105480.0,0.06424]
[1748851306476,1.80316627,105490.0,105480.0,0.06424]
[1748851307585,1.65936858,105490.0,105480.0,0.06424]
[1748851307888,1.65832858,105490.0,105480.0,0.06424]
[1748851308276,1.65832858,105490.0,105480.0,0.2537642]
[1748851308790,1.65632858,105490.0,105480.0,0.2537642]
[1748851308989,1.65532858,105490.0,105480.0,0.06424]
[1748851310489,1.65532858,105490.0,105480.0,0.0595]
[1748851310683,1.65532858,105490.0,105480.0,0.05312338]
[1748851312888,1.65532858,105490.0,105480.0,0.05786338]
[1748851313192,1.79912627,105490.0,105480.0,0.05786338]
[1748851313385,1.65532858,105490.0,105480.0,0.05786338]
[1748851315588,1.22012858,105490.0,105480.0,0.05786338]
[1748851315784,1.65568858,105490.0,105480.0,0.15934338]
[1748851316490,1.44876939,105490.0,105480.0,0.15934338]
[1748851316884,1.6560122,105490.0,105480.0,0.15934338]
[1748851317281,1.6558122,105490.0,105480.0,0.15934338]
[1748851318385,1.44856939,105490.0,105480.0,0.15934338]
[1748851320287,1.44856939,105490.0,105480.0,0.14392833]
[1748851320485,1.08776939,105490.0,105480.0,0.14392833]
[1748851320687,1.44856939,105490.0,105480.0,0.14392833]
[1748851320882,0.64284849,105490.0,105480.0,0.47725022]
[1748851321088,0.64284849,105490.0,105480.0,1.28743385]
[1748851321089,0.45354229,105490.0,105480.0,1.28743385]
[1748851321289,0.80034229,105490.0,105480.0,1.28743385]
[1748851321489,1.00770061,105490.0,105480.0,1.14363616]
[1748851321695,1.00750061,105490.0,105480.0,1.14363616]
[1748851321996,0.80034229,105490.0,105480.0,1.14363616]
[1748851322195,1.00770061,105490.0,105480.0,1.14363616]
[1748851322690,1.00570061,105490.0,105480.0,1.14363616]
[1748851323195,1.00470061,105490.0,105480.0,1.14363616]
[1748851326295,0.79734229,105490.0,105480.0,1.14363616]
[1748851326600,0.36034229,105490.0,105480.0,1.14363616]
[1748851326787,0.36034229,105490.0,105480.0,1.28743385]
[1748851326991,0.94547707,105490.0,105480.0,1.28743385]
[1748851327195,0.94527707,105490.0,105480.0,1.28743385]
[1748851327390,0.94547707,105490.0,105480.0,1.28743385]
[1748851329893,0.94547707,105490.0,105480.0,1.14363616]
[1748851330402,0.79746229,105490.0,105480.0,1.14363616]
[1748851330606,0.83836229,105490.0,105480.0,1.14363616]
[1748851332808,1.02786849,105490.0,105480.0,0.95973847]
[1748851333103,1.17166618,105490.0,105480.0,0.33345253]
[1748851333502,1.68048096,105490.0,105480.0,0.04244833]
[1748851333701,1.80048096,105490.0,105480.0,0.14392833]
[1748851333905,1.65246618,105490.0,105480.0,0.14392833]
[1748851334099,1.65246618,105490.0,105480.0,0.33345253]
[1748851334295,1.50866849,105490.0,105480.0,0.33345253]
[1748851334500,1.50966849,105490.0,105480.0,0.33345253]
[1748851335307,1.38966849,105490.0,105480.0,0.33345253]
[1748851335705,0.95254849,105490.0,105480.0,0.74273616]
[1748851335900,1.39258849,105490.0,105480.0,0.74273616]
[1748851336099,1.39238849,105490.0,105480.0,0.74273616]
[1748851336300,1.39258849,105490.0,105480.0,0.74273616]
[1748851337107,1.39258849,105490.0,105480.0,0.59893847]
[1748851339305,1.53638618,105490.0,105480.0,0.59893847]
[1748851340200,1.53638618,105490.0,105480.0,0.14392833]
[1748851340411,1.7437445,105490.0,105480.0,0.33345253]
[1748851340802,1.59994681,105490.0,105480.0,0.33345253]
[1748851341004,1.7437445,105490.0,105480.0,0.33345253]
[1748851341708,1.7437445,105490.0,105480.0,0.32233594]
[1748851341916,1.3829445,105490.0,105480.0,0.32233594]
[1748851342207,1.3829445,105490.0,105480.0,0.13281174]
[1748851342208,1.7437445,105490.0,105480.0,0.13281174]
[1748851342806,1.3829445,105490.0,105480.0,0.13281174]